[Event "Przeworsk GM norm 2022"]
[Site "Przeworsk"]
[Date "2022.06.02"]
[Round "5.3"]
[White "Mikrut, Dariusz"]
[Black "Neugebauer, Martin"]
[Result "0-1"]
[ECO "B94"]
[WhiteElo "2361"]
[BlackElo "2505"]
[Annotator "TA"]
[PlyCount "46"]
[EventDate "2022.05.30"]
[EventType "tourn"]
[EventCountry "POL"]
[SourceTitle "playchess.com"]
[Source "ChessBase"]
[SourceQuality "1"]
[TimeControl "40/5400+30:1800+30"]

{[%evp 16,46,13,23,41,25,21,27,13,-99,-105,-110,-7,-10,-14,-141,-163,-230,-237,-403,-393,-569,-567,-633,-663,-664,-655,-799,-756,-879,-877,-812,-600]} 1. e4 {[%emt 0:00:01]} c5 {[%emt 0:00:45]} 2. Nf3 {[%emt 0:00:05]} Nf6 {[%emt 0:01:11]} 3. Nc3 {[%emt 0:00:07]} d6 {[%emt 0:00:23]} 4. d4 {[%emt 0:00:05]} cxd4 {[%emt 0:00:05]} 5. Nxd4 {[%emt 0:00:03]} a6 {[%emt 0:00:43]} 6. Bg5 {[%emt 0:00:06]} Nbd7 {[%emt 0:03:59]} 7. Qe2 {[%emt 0:00:10]} e6 {[%emt 0:04:15]} 8. f4 {[%emt 0:00:17]} Qc7 {[%emt 0:00:36]} 9. O-O-O {[%emt 0:00:44]} Be7 {[%emt 0:00:56] B96: Sicilian Najdorf: 6 Bg5 e6 7 f4, lines other than 7...Qb6 and 7...Be7.} 10. g4 {[%emt 0:08:49]} b5 {[%emt 0:05:13]} 11. Bg2 {[%emt 0:10:18][%cal Oe4e5]} b4 {[%emt 0:11:20] White has an edge.} 12. Nd5 {[%emt 0:19:15]} exd5 $17 {[%emt 0:02:47]} 13. Nf5 {[%emt 0:00:08] [#]} Nb6 {[%emt 0:12:09] [#]} ({But not} 13... dxe4 14. Bxe4 Rb8 {[#]} 15. Bc6 $1 $16 {[%mdl 512]}) (13... h6 $1 $17 {[%cal Rh6g5]} 14. Bxf6 (14. exd5 Nc5 $17) 14... gxf6 15. exd5 Nc5) 14. e5 $146 {[%emt 0:29:50]} ({Predecessor:} 14. Nxg7+ Kf8 15. Bh6 Kg8 16. Rhg1 Bf8 17. g5 Ng4 18. Nf5 Bxf5 19. exf5 Rc8 20. Kb1 Nxh6 21. gxh6 Bxh6 {½-½ (54) Goumas,G (2398)-Istratescu,A (2633) Plovdiv 2012}) 14... dxe5 {[%emt 0:14:29]} (14... Bxf5 {looks sharper.} 15. exf6 Bxc2 16. Qxc2 Rc8) 15. fxe5 {[%emt 0:01:27]} (15. Nxg7+ $11 Kf8 16. Bh6) 15... Bxf5 $17 {[%emt 0:00:39]} 16. exf6 {[%emt 0:11:00]} (16. gxf5 $142 Ne4 17. Bxe7 Qxe7 18. Bxe4 dxe4 19. Qxe4) 16... gxf6 $19 {[%emt 0:01:15]} 17. gxf5 {[%emt 0:05:08]} (17. Bxf6 Bxc2 18. Qxe7+ Qxe7 19. Bxe7 Bxd1 20. Bf6) 17... fxg5 {[%emt 0:00:20]} 18. Rhe1 {[%emt 0:03:38]} (18. f6 $142 Qf4+ 19. Kb1 Qxf6 20. Rhf1) 18... Kf8 {[%emt 0:01:15] Black is clearly winning.} 19. Bxd5 {[%emt 0:00:47]} Nxd5 {[%emt 0:00:31]} 20. Rxd5 {[%emt 0:00:04]} Bf6 {[%emt 0:00:32] aiming for ...Kg7.} 21. Red1 {[%emt 0:00:37]} Kg7 {[%emt 0:00:25]} 22. Rd7 {[%emt 0:00:22]} Qf4+ {[%emt 0:00:27]} 23. Kb1 {[%emt 0:00:04]} Qe5 {[%emt 0:01:03] Weighted Error Value: White=0.61/Black=0.11 (very precise)} 0-1

[Event "Przeworsk GM norm 2022"]
[Site "Przeworsk"]
[Date "2022.06.02"]
[Round "5.4"]
[White "Teclaf, Pawel"]
[Black "Mis, Mieszko"]
[Result "1-0"]
[ECO "B13"]
[WhiteElo "2537"]
[BlackElo "2388"]
[Annotator "TA"]
[PlyCount "79"]
[EventDate "2022.05.30"]
[EventType "tourn"]
[EventCountry "POL"]
[SourceTitle "playchess.com"]
[Source "ChessBase"]
[SourceQuality "1"]
[TimeControl "40/5400+30:1800+30"]

{[%evp 13,79,14,39,4,19,18,31,28,28,25,64,48,50,35,83,74,88,93,97,85,75,62,93,98,128,106,99,12,22,8,14,20,14,22,12,13,25,24,24,0,0,-5,74,-4,79,0,0,0,26,0,7,0,25,0,118,109,96,104,97,81,446,434,422,410,508,488,449,408]} 1. e4 {[%emt 0:00:08]} c6 {[%emt 0:00:04]} 2. d4 {[%emt 0:00:37]} d5 {[%emt 0:00:05]} 3. exd5 {[%emt 0:00:05]} cxd5 {[%emt 0:00:04]} 4. Bd3 {[%emt 0:00:04]} Nc6 {[%emt 0:00:10]} 5. c3 {[%emt 0:00:04]} Nf6 {[%emt 0:00:04]} 6. h3 {[%emt 0:00:21]} g6 {[%emt 0:00:09]} 7. Nf3 {[%emt 0:00:51]} Bg7 {[%emt 0:00:20] 7...Bf5 deserves study.} 8. Qc2 {[%emt 0:00:34] B13: Caro-Kann: Exchange Variation and Panov-Botvinnik Attack.} Qc7 {[%emt 0:03:43]} 9. O-O {[%emt 0:02:01]} O-O {[%emt 0:00:25]} 10. Re1 {[%emt 0:02:48] White is slightly better.} Nd7 {[%emt 0:03:41]} 11. Be3 {[%emt 0:11:28] [#]} f6 $146 {[%emt 0:13:48]} ({Predecessor:} 11... e5 12. dxe5 Ndxe5 13. Nbd2 Be6 14. Nxe5 Nxe5 15. Bd4 Rfe8 16. Rad1 a6 17. Nb3 Bd7 {½-½ (74) Wei,Y (2732)-Le,Q (2709) Chess.com INT 2020}) 12. Qb3 {[%emt 0:04:46]} Nb6 {[%emt 0:02:18]} 13. a4 {[%emt 0:22:01][%cal Ba2a4,Ba4a5,Ba5a6][%mdl 32] Hoping for a5.} Be6 {[%emt 0:05:42] [#]} (13... Bf5 $14 {might be stronger.} 14. Bxf5 gxf5) 14. Bf4 $1 $16 {[%emt 0:04:12]} Qd7 {[%emt 0:06:50]} 15. Nbd2 {[%emt 0:05:04] Inhibits Nc4. And now a5 would win.} Bf7 {[%emt 0:02:01]} 16. a5 {[%emt 0:02:04]} Nc8 {[%emt 0:00:05]} 17. c4 {[%emt 0:07:18] White is much more active.} e6 {[%emt 0:08:53]} 18. a6 {[%emt 0:07:37]} b6 {[%emt 0:09:55]} 19. cxd5 {[%emt 0:02:40]} exd5 {[%emt 0:00:07]} 20. Qa3 {Against Nd6} ({White should try} 20. Qa4 $1 $16) 20... Rd8 $1 $11 {[%emt 0:01:53]} 21. Rac1 {[%emt 0:06:41] aiming for Bb5.} Nd6 {[%emt 0:01:37] Prevents Bb5.} 22. Qxd6 {[%emt 0:02:15]} Qxd6 {[%emt 0:00:12]} 23. Bxd6 {[%emt 0:00:02]} Rxd6 {[%emt 0:00:02]} 24. Bb5 {[%emt 0:00:03]} Nd8 {[%emt 0:00:21]} 25. Nb1 {[%emt 0:03:08]} (25. Rc7 {feels hotter.} Ne6 26. Rb7 Bf8 27. Nb1) 25... Bf8 {[%emt 0:07:32]} 26. Ba4 {[%emt 0:03:58]} Ne6 {[%emt 0:01:01]} 27. Na3 {[%emt 0:00:52]} Rad8 {[%emt 0:08:42]} (27... b5 $11 {remains equal.} 28. Bxb5 Rb8) 28. g3 {[%emt 0:01:21]} (28. Nb5 $16) 28... h5 {[%emt 0:05:04]} (28... Bh6 $11 29. Ra1 b5 30. Nxb5 Rxa6) 29. h4 {[%emt 0:04:39]} (29. Nb5 $16) 29... Bh6 {[%emt 0:02:03]} 30. Rc2 {[%emt 0:01:31]} Bf8 {[%emt 0:00:05]} (30... b5 $5 31. Bxb5 Rb6 $11) 31. Rcc1 Bh6 {[%emt 0:00:06]} 32. Rc2 {[%emt 0:00:44]} Bf8 {[%emt 0:00:06]} 33. Kf1 {[%emt 0:01:50]} Rb8 {[%emt 0:03:36] [#]} (33... b5 $11 34. Nxb5 Rxa6) 34. Nb5 $1 $16 {[%emt 0:01:17][%csl LRa7,LRd6]} Rd7 {[%emt 0:00:06]} 35. Rc6 {[%emt 0:00:25]} Re8 {[%emt 0:09:06]} 36. Nc3 {[%emt 0:00:52][%cal Oc6e6] Strongly threatening Rcxe6!} Ree7 {[%emt 0:00:03][%mdl 8192] [#] Loses the game.} (36... Rdd8 $16 {is tougher.}) 37. Rcxe6 $1 $18 {[%emt 0:00:59][%mdl 512]} Bxe6 {[%emt 0:00:09]} 38. Rxe6 {[%emt 0:00:09]} Rxe6 {[%emt 0:00:55]} 39. Bxd7 {[%emt 0:00:06]} Rd6 {[%emt 0:00:03]} 40. Bc8 {[%emt 0:00:00] Weighted Error Value: White=0.14 (very precise) /Black=0.38} 1-0

[Event "Przeworsk GM norm 2022"]
[Site "Przeworsk"]
[Date "2022.06.02"]
[Round "5.5"]
[White "Fus, Jakub"]
[Black "Omelja, Artem"]
[Result "0-1"]
[ECO "C65"]
[WhiteElo "2378"]
[BlackElo "2515"]
[Annotator "TA"]
[PlyCount "102"]
[EventDate "2022.05.30"]
[EventType "tourn"]
[EventCountry "POL"]
[SourceTitle "playchess.com"]
[Source "ChessBase"]
[SourceQuality "1"]
[TimeControl "40/5400+30:1800+30"]

{[%evp 12,102,21,4,27,24,25,27,28,31,34,16,27,18,54,45,44,26,38,40,53,7,15,15,16,14,13,13,43,0,22,20,16,0,0,-18,-18,-20,-13,-29,15,0,42,0,33,-24,-24,-10,-24,-50,-16,-14,-14,-30,-28,-53,-44,-52,-53,-90,-93,-90,-56,-64,-75,-70,-47,-38,-33,-32,-8,-32,-32,-32,-36,-37,-39,-41,-41,-62,-83,-220,-219,-211,-133,-525,-520,-1183,-1195,-1050,-1045,-808,-789]} 1. e4 {[%emt 0:00:15]} e5 {[%emt 0:00:09]} 2. Nf3 {[%emt 0:00:29]} Nc6 {[%emt 0:00:07]} 3. Bb5 {[%emt 0:00:13]} Nf6 {[%emt 0:00:08]} 4. d3 {[%emt 0:03:02]} Bc5 {[%emt 0:00:08]} 5. c3 {[%emt 0:01:09]} O-O {[%emt 0:00:09]} 6. O-O {[%emt 0:00:19]} d6 {[%emt 0:00:30]} 7. Bg5 {[%emt 0:01:50] 7.Re1 is becoming the main line.} Bb6 {[%emt 0:00:44] C65: Ruy Lopez: Berlin Defence (3...Nf6), unusual lines and 4 0-0 Bc5.} 8. Nbd2 {[%emt 0:01:19]} Ne7 {[%emt 0:01:17]} 9. Bxf6 {[%emt 0:00:35]} gxf6 {[%emt 0:00:08] White has an edge.} 10. d4 {[%emt 0:00:48]} c6 {[%emt 0:01:42]} 11. Bd3 {[%emt 0:02:40] [#]} Ng6 $146 {[%emt 0:00:08]} ({Predecessor:} 11... Kh8 12. Nc4 Bc7 13. Ne3 Ng6 14. g3 Rg8 15. Kh1 Qf8 16. Qb3 Rb8 17. a4 Bh3 {1-0 (46) Schmittdiel,E (2428)-Kraemer,M (2237) Germany 2014}) 12. Nc4 {[%emt 0:02:53]} Be6 {[%emt 0:04:55]} 13. Ne3 {[%emt 0:11:22]} d5 {[%emt 0:03:23]} 14. g3 {[%emt 0:06:59]} dxe4 {[%emt 0:17:01]} 15. Bxe4 {[%emt 0:00:11]} exd4 {[%emt 0:03:51]} 16. cxd4 {[%emt 0:02:13]} (16. Nxd4 $14 Bxd4 17. cxd4 (17. Qxd4 Qxd4 18. cxd4 Rad8 $11)) 16... Qe7 {[%emt 0:00:36]} 17. Qc2 {[%emt 0:04:26]} Rad8 {[%emt 0:03:27]} 18. Rfd1 {[%emt 0:05:47]} Rfe8 {[%emt 0:02:34][%cal Bf8e8,Be8e4,Be4e6][%mdl 32]} 19. Bf5 {[%emt 0:06:48]} Bxf5 {[%emt 0:02:53]} 20. Nxf5 {[%emt 0:03:12]} Qe4 {[%emt 0:01:03]} 21. Qxe4 {[%emt 0:01:07]} Rxe4 {[%emt 0:00:07]} 22. Re1 {[%emt 0:01:26]} Re6 {[%emt 0:04:04]} 23. a3 {[%emt 0:05:23]} Kf8 {[%emt 0:00:52]} 24. Rad1 {[%emt 0:12:34]} Ne7 {[%emt 0:02:17]} 25. Ne3 {[%emt 0:04:42]} Nd5 {[%emt 0:08:18][%cal Be7d5,Bd5c7,Bc7b5,Bb5d6,Bd6f5][%mdl 32]} 26. Nc4 {[%emt 0:01:20]} Nc7 {[%emt 0:01:18]} 27. Kf1 {[%emt 0:01:18]} ({Don't play} 27. Nxb6 axb6 28. Kg2 b5 $11) 27... Nb5 {[%emt 0:01:30]} 28. Rxe6 {[%emt 0:06:00]} ({White should try} 28. Re3 $14) 28... fxe6 $11 {[%emt 0:00:08]} 29. a4 {[%emt 0:00:23]} Nd6 {[%emt 0:00:15]} 30. b3 {[%emt 0:01:15]} Nf5 {[%emt 0:07:52]} 31. g4 {[%emt 0:00:55]} Ne7 {[%emt 0:00:21]} 32. Ke2 {[%emt 0:03:18]} Kf7 {[%emt 0:00:22]} 33. h4 {[%emt 0:03:40]} Bc7 {[%emt 0:01:12]} 34. Rg1 {[%emt 0:00:34]} h5 {[%emt 0:02:10]} 35. g5 {[%emt 0:00:48]} Nf5 {[%emt 0:00:24]} 36. Rd1 {[%emt 0:01:40]} Bb6 {[%emt 0:03:57]} 37. Nxb6 {[%emt 0:00:27]} axb6 $15 {[%emt 0:00:07][%mdl 4096] Endgame KRN-KRN} 38. Rd2 {[%emt 0:02:13]} fxg5 {[%emt 0:02:04]} 39. hxg5 {[%emt 0:00:44]} Rd5 {[%emt 0:01:41]} 40. Kf1 {[%emt 0:00:00]} Kg6 {[%emt 0:00:00]} 41. Kg2 {[%emt 0:02:04]} c5 {[%emt 0:09:45]} 42. dxc5 {[%emt 0:00:50]} bxc5 {[%emt 0:00:06]} 43. Re2 {[%emt 0:07:36]} Nd4 {[%emt 0:00:19]} 44. Re4 {[%emt 0:06:44]} Kf5 {[%emt 0:04:35]} ({Resist} 44... Nxb3 45. Rxe6+ Kf7 46. Rb6 $16) 45. Rh4 {[%emt 0:00:31]} Ne2 {[%emt 0:29:41]} 46. b4 {[%emt 0:01:56] [#]} (46. Kh2 $17) 46... Nf4+ $1 $19 {[%emt 0:00:48]} 47. Kg3 {[%emt 0:00:03]} e5 {[%emt 0:00:30]} 48. bxc5 $2 {[%emt 0:02:16][%mdl 8192] White does not recover from this.} (48. g6 $17 Rd6 49. Nxe5 Kxe5 50. Rxf4) 48... Rd3 {[%emt 0:02:19] aiming for ...Ke4. Black is clearly winning.} 49. c6 {[%emt 0:00:33]} (49. g6 $142 Nxg6 50. Rxh5+ Ke4 51. Rh7) 49... bxc6 {[%emt 0:00:27] And now ...Ke4 would win.} 50. g6 {[%emt 0:00:33]} Kxg6 {[%emt 0:01:19] [#] Threatens to win with ...Kf5.} 51. Rh1 {[%emt 0:01:44]} Kf5 {[%emt 0:00:53] Weighted Error Value: White=0.34/Black=0.10 (very precise)} 0-1

[Event "Przeworsk GM norm 2022"]
[Site "Przeworsk"]
[Date "2022.06.02"]
[Round "6.1"]
[White "Stefansson, Hannes"]
[Black "Omelja, Artem"]
[Result "1/2-1/2"]
[ECO "C67"]
[WhiteElo "2534"]
[BlackElo "2515"]
[Annotator "TA"]
[PlyCount "61"]
[EventDate "2022.05.30"]
[EventType "tourn"]
[EventCountry "POL"]
[SourceTitle "playchess.com"]
[Source "ChessBase"]
[SourceQuality "1"]
[TimeControl "40/5400+30:1800+30"]

{[%evp 16,61,12,8,12,12,24,22,28,17,17,18,18,25,20,25,21,16,18,16,47,47,39,41,42,40,36,25,18,30,43,35,64,64,105,105,89,91,94,15,50,42,55,43,49,33,27,19]} 1. e4 {[%emt 0:00:08]} e5 {[%emt 0:00:06]} 2. Nf3 {[%emt 0:00:22]} Nc6 {[%emt 0:00:06]} 3. Bb5 {[%emt 0:00:25]} Nf6 {[%emt 0:00:08]} 4. O-O {[%emt 0:00:29][%cal Bh1f1,Bf1e1,Be1e5][%mdl 32]} Nxe4 {[%emt 0:00:09]} 5. Re1 {[%emt 0:00:45]} Nd6 {[%emt 0:00:12]} 6. Nxe5 {[%emt 0:00:39]} Be7 {[%emt 0:00:14]} 7. Bf1 {[%emt 0:00:26]} Nxe5 {[%emt 0:00:28]} 8. Rxe5 {[%emt 0:00:12]} O-O {[%emt 0:00:10]} 9. d4 {[%emt 0:01:06]} Ne8 {[%emt 0:02:45] C67: Ruy Lopez: Berlin Defence: 4 0-0 Nxe4.} 10. d5 {[%emt 0:02:45]} d6 {[%emt 0:04:53]} 11. Re1 {[%emt 0:00:48]} Bg5 {[%emt 0:00:10] The position is equal.} 12. Nc3 {[%emt 0:01:05]} Bxc1 {[%emt 0:00:28]} 13. Rxc1 {[%emt 0:00:07]} Nf6 {[%emt 0:01:29]} 14. h3 {[%emt 0:08:32]} Bd7 {[%emt 0:00:27]} 15. Qd4 {[%emt 0:01:15]} Re8 {[%emt 0:01:48]} 16. Bd3 {[%emt 0:04:01]} a6 {[%emt 0:01:15] [#]} 17. a4 $146 {[%emt 0:01:57]} ({Predecessor:} 17. Qb4 Rb8 18. a4 h6 19. a5 Qc8 20. Qc4 Bf5 21. Rxe8+ Nxe8 22. Bf1 h5 23. Nd1 {1-0 (67) Hakobyan,A (2554)-Makhnev,D (2449) Manavgat 2018}) 17... Qb8 {[%emt 0:02:32]} 18. Ne4 {[%emt 0:12:30]} Nxe4 {[%emt 0:00:44]} 19. Rxe4 {[%emt 0:00:05]} Rxe4 {[%emt 0:00:41]} 20. Qxe4 {[%emt 0:00:07]} g6 {[%emt 0:00:58]} 21. Qf4 {[%emt 0:02:25]} Qf8 {[%emt 0:01:31]} 22. Qb4 {[%emt 0:00:23]} Rb8 {[%emt 0:03:57]} 23. a5 {[%emt 0:00:36]} b5 {[%emt 0:02:47]} 24. Qd4 {[%emt 0:06:47]} c5 {[%emt 0:00:39]} 25. dxc6 $1 {[%emt 0:00:08]} Bxc6 {[%emt 0:00:06]} 26. Re1 {[%emt 0:01:18]} Qd8 {[%emt 0:01:47] [#]} 27. Qf4 {[%emt 0:03:33] White is much more active.} (27. b4 $1 $16) 27... Rb7 {[%emt 0:04:37]} 28. b4 {[%emt 0:03:29]} Kg7 {[%emt 0:00:33]} 29. Rd1 {[%emt 0:01:23]} d5 {[%emt 0:04:15]} 30. Qd4+ {[%emt 0:11:10]} Qf6 $1 {[%emt 0:00:07]} 31. c3 {[%emt 0:01:31] Weighted Error Value: White=0.08 (flawless) /Black=0.08 (flawless)} 1/2-1/2

[Event "Przeworsk GM norm 2022"]
[Site "Przeworsk"]
[Date "2022.06.02"]
[Round "6.2"]
[White "Mis, Mieszko"]
[Black "Fus, Jakub"]
[Result "1/2-1/2"]
[ECO "C15"]
[WhiteElo "2388"]
[BlackElo "2378"]
[Annotator "TA"]
[PlyCount "61"]
[EventDate "2022.05.30"]
[EventType "tourn"]
[EventCountry "POL"]
[SourceTitle "playchess.com"]
[Source "ChessBase"]
[SourceQuality "1"]
[TimeControl "40/5400+30:1800+30"]

{[%evp 14,61,12,0,10,11,10,18,16,20,22,13,12,19,25,17,21,28,44,21,56,47,48,38,34,0,0,0,-1,-7,-6,-8,0,0,0,-13,0,0,0,-15,0,0,0,-14,0,0,0,-10,0,0]} 1. e4 {[%emt 0:00:03]} e6 {[%emt 0:00:48]} 2. d4 {[%emt 0:00:04]} d5 {[%emt 0:00:06]} 3. Nc3 {[%emt 0:00:04]} Bb4 {[%emt 0:00:58]} 4. Nge2 {[%emt 0:00:12][%cal Bg1e2,Be2c3,Bc3e4][%mdl 32]} dxe4 {[%emt 0:01:37]} 5. a3 {[%emt 0:00:04]} Bxc3+ {[%emt 0:05:31]} 6. Nxc3 {[%emt 0:00:04]} Nc6 {[%emt 0:00:06]} 7. d5 {[%emt 0:00:04]} exd5 {[%emt 0:00:47]} 8. Qxd5 {[%emt 0:00:03]} Nge7 {[%emt 0:10:55] has lost popularity (8...Be6). C15: French: 3 Nc3 Bb4: Unusual White 4th moves.} 9. Qxd8+ {[%emt 0:00:49]} Nxd8 {[%emt 0:00:14]} 10. Nxe4 {[%emt 0:00:05]} Bf5 {[%emt 0:00:56]} 11. Bd3 {[%emt 0:00:05]} Ne6 {[%emt 0:00:43]} 12. Bd2 {[%emt 0:01:51]} O-O-O {[%emt 0:04:44]} 13. O-O-O {[%emt 0:00:17]} Bg6 {[%emt 0:01:30]} 14. h4 {[%emt 0:05:10]} h5 {[%emt 0:01:17] [#]} 15. Rhe1 $146 {[%emt 0:01:33]} ({Predecessor:} 15. f3 Nd5 16. Rhe1 Rhe8 17. Bb5 Rg8 18. Bf1 Rge8 19. Bb5 c6 20. Bf1 Kc7 21. c4 {½-½ (37) Bakalchuk,J (2244)-Nakar,E (2442) Beersheba 2014}) 15... Nf5 {[%emt 0:03:24]} 16. g3 {[%emt 0:07:09]} Nfd4 {[%emt 0:02:08][%cal Od4b3]} 17. Bc3 {[%emt 0:08:24]} Rhe8 {[%emt 0:03:40]} 18. a4 {[%emt 0:13:02]} Bf5 {[%emt 0:16:48]} 19. Bxd4 {[%emt 0:03:53]} Nxd4 {[%emt 0:03:56] The position is equal.} 20. Nc3 {[%emt 0:14:01]} Bg4 {[%emt 0:05:07]} 21. Rxe8 {[%emt 0:00:04]} Rxe8 {[%emt 0:00:05]} 22. Rf1 {[%emt 0:00:07]} Bh3 {[%emt 0:02:27]} 23. Rd1 {[%emt 0:00:44]} Bg4 {[%emt 0:00:05]} 24. Rf1 {[%emt 0:00:03]} Bh3 {[%emt 0:01:44]} 25. Rd1 {[%emt 0:00:07]} Bg4 {[%emt 0:00:03]} 26. Rf1 {[%emt 0:00:03]} Bh3 {[%emt 0:00:08]} 27. Rd1 {[%emt 0:00:03]} Bg4 {[%emt 0:00:05]} 28. Rf1 {[%emt 0:00:03]} Bh3 {[%emt 0:00:04]} 29. Rd1 {[%emt 0:00:03]} Bg4 {[%emt 0:00:04]} 30. Rf1 {[%emt 0:00:02]} Bh3 {[%emt 0:00:03]} 31. Rd1 {[%emt 0:00:03] Weighted Error Value: White=0.03 (flawless) /Black=0.07 (flawless)} 1/2-1/2

[Event "Przeworsk GM norm 2022"]
[Site "Przeworsk"]
[Date "2022.06.02"]
[Round "6.3"]
[White "Neugebauer, Martin"]
[Black "Teclaf, Pawel"]
[Result "1/2-1/2"]
[ECO "C43"]
[WhiteElo "2505"]
[BlackElo "2537"]
[Annotator "TA"]
[PlyCount "60"]
[EventDate "2022.05.30"]
[EventType "tourn"]
[EventCountry "POL"]
[SourceTitle "playchess.com"]
[Source "ChessBase"]
[SourceQuality "1"]
[TimeControl "40/5400+30:1800+30"]

{[%evp 12,60,23,14,14,13,14,14,18,18,18,14,27,15,18,17,13,11,12,8,8,8,8,10,11,15,13,0,2,0,0,0,0,0,0,0,0,0,0,0,0,0,0,0,0,0,0,0,0,0,0]} 1. e4 {[%emt 0:00:16]} e5 {[%emt 0:00:04]} 2. Nf3 {[%emt 0:00:27]} Nf6 {[%emt 0:00:04]} 3. d4 {[%emt 0:01:32]} Nxe4 {[%emt 0:00:06]} 4. Bd3 {[%emt 0:00:06]} Nc6 {[%emt 0:00:36]} 5. Nxe5 {[%emt 0:12:22]} Nxe5 {[%emt 0:00:05]} 6. Bxe4 {[%emt 0:01:38]} d5 {[%emt 0:00:13]} 7. dxe5 {[%emt 0:00:37]} dxe4 {[%emt 0:00:04] C43: Petroff Defence: 3 d4.} 8. Qxd8+ {[%emt 0:00:07]} Kxd8 {[%emt 0:00:02]} 9. Nc3 {[%emt 0:00:48]} Bb4 {[%emt 0:12:17]} 10. Bg5+ {[%emt 0:03:41]} Ke8 {[%emt 0:00:06]} 11. O-O-O {[%emt 0:11:44][%csl Gg5][%cal Rd1d8] [#]} Bg4 {[%emt 0:00:05]} 12. Rd4 {[%emt 0:01:21]} Bxc3 {[%emt 0:00:05] The position is equal.} 13. bxc3 {[%emt 0:00:04]} h6 {[%emt 0:00:08]} 14. Rxe4 {[%emt 0:00:54]} Bh3 {[%emt 0:00:59]} 15. gxh3 {[%emt 0:02:39]} hxg5 $11 {[%emt 0:01:20][%mdl 4096] Endgame KRR-KRR} 16. Rg1 {[%emt 0:02:36]} Rxh3 {[%emt 0:06:45]} 17. Rxg5 {[%emt 0:00:08]} g6 {[%emt 0:02:48]} 18. e6 {[%emt 0:06:26]} Rxc3 {[%emt 0:12:43]} 19. h4 {[%emt 0:04:02] [#] White wants to play h5.} Rc6 $146 {[%emt 0:20:38]} ({Predecessor:} 19... Rf3 20. h5 Rf6 21. e7 Rxf2 22. Rg3 Rf5 23. hxg6 {½-½ (23) Ragger,M (2530)-Baramidze,D (2582) Austria 2008}) 20. exf7+ {[%emt 0:05:54]} Kxf7 {[%emt 0:00:11]} 21. h5 {[%emt 0:00:06]} gxh5 {[%emt 0:03:05]} 22. Rf4+ {[%emt 0:00:08]} Rf6 {[%emt 0:00:52]} 23. Rxf6+ {[%emt 0:00:07]} Kxf6 {[%emt 0:00:04]} 24. Rxh5 {[%emt 0:00:04] KR-KR} Ke6 {[%emt 0:00:22]} 25. Rh6+ {[%emt 0:00:39]} Kd5 {[%emt 0:00:24]} 26. Rh5+ {[%emt 0:00:20]} Ke6 {[%emt 0:00:06]} 27. Rh6+ {[%emt 0:00:05]} Kd5 {[%emt 0:00:03]} 28. Rh5+ {[%emt 0:00:04]} Ke6 {[%emt 0:00:04]} 29. Rh6+ {[%emt 0:00:05]} Kd5 {[%emt 0:00:04]} 30. Rh5+ {[%emt 0:00:06]} Ke6 {[%emt 0:00:03] An interesting draw.  Weighted Error Value: White=0.01 (flawless) /Black=0.00 (flawless)} 1/2-1/2

[Event "Przeworsk GM norm 2022"]
[Site "Przeworsk"]
[Date "2022.06.02"]
[Round "6.4"]
[White "Golubka, Petro"]
[Black "Mikrut, Dariusz"]
[Result "1/2-1/2"]
[ECO "B20"]
[WhiteElo "2380"]
[BlackElo "2361"]
[Annotator "TA"]
[PlyCount "76"]
[EventDate "2022.05.30"]
[EventType "tourn"]
[EventCountry "POL"]
[SourceTitle "playchess.com"]
[Source "ChessBase"]
[SourceQuality "1"]
[TimeControl "40/5400+30:1800+30"]

{[%evp 10,76,-6,-10,6,-14,0,-13,20,20,23,0,12,-5,-4,-11,0,-10,15,-17,9,16,26,0,14,-6,0,0,0,-14,-13,-50,-8,0,0,-34,-13,-18,-22,-39,-47,-47,-34,-60,0,-16,-21,-93,-62,-92,-92,-91,-80,-85,-90,-97,-34,-53,-3,-12,-16,-28,0,-11,0,0,0,-4,0]} 1. e4 {[%emt 0:01:09]} c5 {[%emt 0:00:12]} 2. a3 {[%emt 0:00:59]} g6 {[%emt 0:00:08]} 3. Bc4 {[%emt 0:00:53]} Bg7 {[%emt 0:00:26]} 4. Nc3 {[%emt 0:00:35]} Nc6 {[%emt 0:00:48]} 5. Nge2 {[%emt 0:00:36]} Nf6 {[%emt 0:05:08]} 6. d3 {[%emt 0:00:16]} d6 {[%emt 0:00:27] B23: Closed Sicilian: Lines without g3.} 7. h3 {[%emt 0:01:02]} O-O {[%emt 0:01:15]} 8. O-O {[%emt 0:10:10]} Be6 {[%emt 0:18:30] [#]} 9. Bxe6 $146 {[%emt 0:01:47]} ({Predecessor:} 9. Nd5 Qd7 10. Nef4 Rab8 11. a4 a6 12. a5 Bxd5 13. Nxd5 e6 14. Nb6 Qd8 15. Bg5 {1-0 (21) Grbesa,J-Saric,B (1938) Split 2005}) 9... fxe6 {[%emt 0:00:11]} 10. Bg5 {[%emt 0:04:12]} e5 {[%emt 0:11:16]} 11. Qb1 {[%emt 0:01:39]} Qd7 {[%emt 0:04:08]} 12. b4 {[%emt 0:02:33]} b6 {[%emt 0:04:19]} 13. b5 {[%emt 0:09:19] [#] Hoping for Qb3+.} Nd4 {[%emt 0:05:12] Against Qb3+} 14. Nxd4 {[%emt 0:02:14]} (14. a4 {looks sharper.} Nh5 15. Nxd4 exd4 16. Qb3+) 14... cxd4 {[%emt 0:06:31]} 15. Qb3+ {[%emt 0:06:00]} e6 {[%emt 0:00:24]} 16. Ne2 {[%emt 0:01:02]} Nh5 {[%emt 0:02:57]} 17. g3 {[%emt 0:05:27]} d5 {[%emt 0:01:46]} 18. f3 {[%emt 0:00:32]} Rac8 {[%emt 0:13:36]} 19. a4 {[%emt 0:01:24]} Rf7 {[%emt 0:02:01]} 20. g4 {[%emt 0:04:02]} Bf6 {[%emt 0:01:22][%cal Bg7f6,Bf6d8,Bd8b6][%mdl 32]} 21. Bd2 {[%emt 0:02:02]} Ng7 {[%emt 0:00:16]} 22. a5 {[%emt 0:01:26]} Bd8 {[%emt 0:03:38]} 23. axb6 {[%emt 0:02:53]} Bxb6 {[%emt 0:00:44]} 24. Ng3 {[%emt 0:01:53]} Rc5 {[%emt 0:01:04]} 25. Rab1 {[%emt 0:00:13]} Qc8 {[%emt 0:00:13]} 26. Rb2 {[%emt 0:01:06]} Qd7 {[%emt 0:03:24]} (26... Ne8 $15) 27. Kg2 {[%emt 0:05:57]} Ne8 {[%emt 0:00:05]} 28. Rc1 {[%emt 0:05:01]} (28. exd5 $11 exd5 29. c4) 28... Nc7 {[%emt 0:01:07]} 29. Bb4 {[%emt 0:01:38]} Rxb5 {[%emt 0:00:27] [#] aiming for ...a5.} 30. Qa2 {[%emt 0:00:18]} Qd8 {[%emt 0:04:10]} 31. Bd2 {[%emt 0:00:33] Inhibits Qg5.} Rxb2 {[%emt 0:00:19]} 32. Qxb2 {[%emt 0:00:11]} Qd7 {[%emt 0:00:44]} ({Black should try} 32... Na6 $17 33. Qb5 Nc5) 33. c4 $15 {[%emt 0:01:01]} dxc3 {[%emt 0:00:35]} (33... dxc4 $15 34. Rxc4 Qd8) 34. Bxc3 $11 {[%emt 0:00:03]} d4 {[%emt 0:05:27]} 35. Bb4 {[%emt 0:01:29]} Kg7 {[%emt 0:01:16]} 36. h4 {[%emt 0:04:00] The position is equal.} Na6 {[%emt 0:01:00]} 37. Ba3 {[%emt 0:00:14]} Nc7 {[%emt 0:00:22]} 38. Bb4 {[%emt 0:01:01]} Na6 {[%emt 0:00:48] Weighted Error Value: White=0.14 (very precise) /Black=0.15 (very precise)} 1/2-1/2